Cogmind - Beta 15 @@@ ROGUE MODE // 2025.06.17 @ 16:32:02 Player: quak Result: Destroyed by L-31 Rogue with Katana Performance ------------- Evolutions (1) 500 Regions Visited (3) 600 Robots Destroyed (83) 415 Value Destroyed (1914) 1914 Prototype IDs (7) 140 Alien Tech Used (0) 0 Bonus (0) 0 TOTAL SCORE: 3569 Bonus ------- None Cogmind --------- Core Integrity 0/400 Matter 177/300 Energy 263/265 System Corruption 1% Temperature Cool (0) Movement Treading (160) Location -9/Storage Parts ------- > --- POWER (1) -------- Improved Ion Engine > --- PROPULSION (3) --- Light Treads Light Treads Improved Treads > --- UTILITY (3) ------ Large Storage Unit Signal Interpreter Light Armor Plating > --- WEAPON (2) ------- Heavy Assault Rifle Improved Assault Rifle > --- INVENTORY (15) --- Light Treads Light Treads Improved Flight Unit Improved Flight Unit Improved Flight Unit Improved Flight Unit Improved Flight Unit Improved Flight Unit Visual Processing Unit Light Armor Plating Hacking Suite Rocket Launcher Rocket Launcher Mining Laser Peak State ------------ > --- POWER ------------ Ion Engine > --- PROPULSION ------- Light Treads Light Treads Improved Treads > --- UTILITY ---------- Huge Storage Unit Sensor Array Signal Interpreter > --- WEAPON ----------- Improved Assault Rifle Improved Assault Rifle > --- INVENTORY -------- Improved Ion Engine Light Treads Light Treads Light Treads Light Treads Light Treads Improved Flight Unit Improved Flight Unit Improved Flight Unit Improved Flight Unit Improved Flight Unit Improved Flight Unit Cooling System Visual Processing Unit Light Armor Plating Light Armor Plating Light Armor Plating Light Armor Plating Hacking Suite Medium Laser Heavy Assault Rifle Heavy Assault Rifle Grenade Launcher Grenade Launcher Mining Laser [Rating: 18] Favorites ----------- Power Ion Engine Engine Ion Engine Propulsion Light Treads Treads Light Treads Utility Signal Interpreter Device Sensor Array Storage Small Storage Unit Processor Signal Interpreter Protection Light Armor Plating Weapon Improved Assault Rifle Energy Gun Particle Gun Ballistic Gun Improved Assault Rifle Launcher Grenade Launcher Special Weapon Mining Laser Build | -11 -10 -9 -9 ------- Run | Yrd Mat Mat Sto Slots Evolved 2 | . . 2 . Power . | . . . . Propulsion 1 | . . 1 . Utility 1 | . . 1 . Weapon . | . . . . Parts Attached 43 | 7 5 25 6 Power 5 | 1 1 2 1 Engine 5 | 1 1 2 1 Core . | . . . . Reactor . | . . . . Propulsion 14 | 2 . 10 2 Treads 14 | 2 . 10 2 Leg . | . . . . Wheel . | . . . . Hover . | . . . . Flight . | . . . . Utility 10 | 2 1 5 2 Device 2 | 1 1 . . Storage 3 | 1 . 2 . Processor 1 | . . 1 . Hackware . | . . . . Protection 4 | . . 2 2 Artifact . | . . . . Weapon 14 | 2 3 8 1 Energy Gun 3 | 1 1 1 . Energy Cannon . | . . . . Ballistic Gun 9 | 1 1 6 1 Ballistic Cannon . | . . . . Launcher 1 | . . 1 . Special Weapon 1 | . 1 . . Impact Weapon . | . . . . Slashing Weapon . | . . . . Piercing Weapon . | . . . . Special Melee Weapon . | . . . . Unidentified Prototypes . | . . . . Parts Lost 5 | . . 5 . Power 1 | . . 1 . Propulsion 1 | . . 1 . Utility 1 | . . 1 . Weapon 2 | . . 2 . Highest Loss Streak 2 | . . 2 . To Critical Strikes . | . . . . Average Backups 11 | . 6 14 14 Power . | . . . . Propulsion 4 | . . 5 8 Utility 3 | . 1 3 3 Weapon 3 | . 3 4 3 Tool/Special . | . . . . Unused Backups 19 | . . 5 14 Power . | . . . . Propulsion 9 | . . 2 7 Utility 6 | . . 2 4 Weapon 4 | . . 1 3 Tool/Special . | . . . . Average Slot Usage (%) 98 | . 98 97 99 Engine 10 | . 13 9 11 Treads 31 | . 27 32 33 Device 8 | . 14 8 . Storage 11 | . 14 11 11 Processor 8 | . . 11 11 Protection 2 | . . 1 11 Energy Gun 5 | . 13 2 . Ballistic Gun 18 | . 13 19 21 Peak Build Rating 18 | 7 8 18 17 Average Rating 12 | 5 7 14 16 On Entrance 8 | . 7 8 17 Naked Turns . | . . . . Heaviest Build 113 | 14 15 113 36 Greatest Support 63 | 40 40 63 63 Greatest Overweight (x) 4 | . 4 1 . Average Overweight (x) . | . . . . Largest Inventory Capacity 25 | 8 8 25 15 Average Capacity 14 | 7 8 18 15 Most Carried 25 | 1 8 25 15 Average Carried 11 | . 6 14 14 Final Capacity 15 | 8 8 15 15 Final Carried 15 | 1 7 15 14 Class Distribution -------------------- 54% | Scavenger-Mutant 45% | Mutant Dominant Class ---------------- Mutant | -10/Materials Scavenger-Mutant | -9/Materials Scavenger-Mutant | -9/Storage Resources | -11 -10 -9 -9 ----------- Run | Yrd Mat Mat Sto Matter Collected 1547 | 273 150 787 337 Remotely . | . . . . Salvage Created 2903 | 70 575 1569 689 Parts 194 | 9 39 102 44 Haulers Intercepted 9 | . 2 4 3 Recyclers Shooed 2 | 1 1 . . Parts Field Recycled . | . . . . Retrieved Matter . | . . . . Parts Self-Destructed . | . . . . Prevented . | . . . . Kills | -11 -10 -9 -9 ------- Run | Yrd Mat Mat Sto Combat Hostiles Destroyed 57 | . 14 32 11 Guns 47 | . 13 23 11 AOE 10 | . 1 9 . Classes Destroyed 10 | 1 7 2 . Worker 2 | . . 2 . Builder 2 | . 1 1 . Tunneler 3 | 3 . . . Hauler 9 | . 2 4 3 Recycler 2 | . 1 1 . Operator 2 | . 1 1 . Watcher 6 | . 1 3 2 Swarmer 19 | . 9 10 . Grunt 23 | . 5 12 6 Sentry 15 | . . 10 5 Best Kill Streak 6 | 3 4 6 4 Combat Bots Only 4 | . 4 4 3 Max Kills in Single Turn 4 | 1 2 4 1 Gunslinging . | . . . . Exploded 2 | . 1 2 . Melee . | . . . . Uniques/NPCs Destroyed . | . . . . Combat | -11 -10 -9 -9 -------- Run | Yrd Mat Mat Sto Hostile Shots Fired 278 | . 64 161 53 Missed 78 | . 19 45 14 Hits 200 | . 45 116 39 Melee 3 | . . . 3 Projectile 197 | . 45 116 36 Critical Strikes 6 | . 1 2 3 Damage Taken 2590 | 39 481 1492 578 Core 505 | 39 63 223 180 Absorbed by Shields . | . . . . Core Remaining (%) 71 | 84 59 . . Volleys Fired 235 | 3 59 121 52 Largest 2 | 2 2 2 2 Hottest 100 | 60 100 100 46 Shots Fired 457 | 6 114 232 105 Gun 440 | 6 110 219 105 Cannon . | . . . . Launcher 5 | . . 5 . Special 12 | . 4 8 . Kinetic 328 | 3 55 165 105 Thermal 86 | . 24 62 . Explosive 5 | . . 5 . Electromagnetic 38 | 3 35 . . Robot Hit Streak 22 | 4 13 21 22 Robot Miss Streak 4 | . 4 3 2 Penetration Max . | . . . . Secondary Targets 3 | . 2 1 . Max Gunslinging Chain 1 | . 1 1 . Shots Hit Robots 317 | 4 62 165 86 Core Hits 131 | 3 30 74 24 Critical Kills . | . . . . Critical Parts Destroyed 1 | . . 1 . Critical Strikes 8 | . 2 6 . Burn 6 | . 1 5 . Destroy 1 | . . 1 . Corrupt 1 | . 1 . . Melee Attacks . | . . . . Impact . | . . . . Slashing . | . . . . Piercing . | . . . . Sneak Attacks . | . . . . Combat Hostiles . | . . . . Follow-up Attacks . | . . . . Damage Inflicted 5285 | 94 919 2910 1362 Guns 4392 | 40 748 2242 1362 Cannons . | . . . . Explosions 885 | 48 169 668 . Melee . | . . . . Ramming 8 | 6 2 . . Kinetic 3284 | . 269 1653 1362 Thermal 1026 | 48 389 589 . Explosive 668 | . . 668 . Electromagnetic 299 | 40 259 . . Impact . | . . . . Slashing . | . . . . Piercing . | . . . . Highest Corruption 1 | . . 1 1 Average Corruption 1 | . . 1 1 Corruption Purged . | . . . . Corruption Blocked . | . . . . Effects 20 | . . 12 8 Message Errors 4 | . . 3 1 Matter Fused 1 | . . . 1 Heat Flow Errors 2 | . . 2 . Energy Discharges 9 | . . 4 5 Data Loss (minor) 1 | . . 1 . Misfires 3 | . . 2 1 Overload Shots . | . . . . Overflow Damage 14 | . . 14 . Projectiles . | . . . . Explosions 14 | . . 14 . Melee . | . . . . Knockbacks . | . . . . Impact . | . . . . Kinetic . | . . . . Secondary . | . . . . Self-Inflicted Damage 136 | 39 35 62 . Shots 4 | 1 1 2 . Rammed 3 | 1 2 . . Targets Rammed 3 | 1 2 . . Kicked . | . . . . Crushed . | . . . . Highest Temperature 390 | 32 390 269 28 Average Temperature 49 | 18 73 42 9 Received Heat Transfer 849 | . 144 480 225 Effects 1 | . 1 . . Shutdowns 1 | . 1 . . Siege Activations . | . . . . Martial Activations . | . . . . Shielding Activations . | . . . . Robots Disrupted . | . . . . Combat Hostiles . | . . . . Robots Corrupted . | . . . . Combat Hostiles . | . . . . Parts Fried 2 | . 2 . . Impact Corruptions . | . . . . Robots Melted 1 | . 1 . . Combat Hostiles . | . . . . Parts Melted 4 | . 2 2 . Heat Transferred 2827 | 50 742 2035 . Parts Sabotaged . | . . . . Parts Stolen . | . . . . Parts Stripped . | . . . . Power Chain Reactions 3 | 1 2 . . Alert | -11 -10 -9 -9 ------- Run | Yrd Mat Mat Sto Maximum Alert Level 1 | . 1 1 . Low Security (%) 84 | 100 99 72 100 Level 1 15 | . . 27 . Level 2 . | . . . . Level 3 . | . . . . Level 4 . | . . . . Level 5 . | . . . . High Security . | . . . . Max Security . | . . . . Peak Influence 388 | 5 201 388 186 Initial 158 | . . 9 158 Average 145 | 1 94 173 149 Influence Increases 1814 | 15 444 1038 317 Destroy 0b10 Robot/C 1140 | . 280 640 220 Destroy 0b10 Robot/NC 130 | 15 30 60 25 Destroy Leader 310 | . 56 184 70 Successful Hack 55 | . 33 22 . Disable Machine 75 | . 15 60 . Destroy Structure 59 | . 15 42 2 Lose Combat Pursuer 45 | . 15 30 . Influence Decreases 1649 | 15 422 684 528 Entered New Map 231 | . . 13 218 Time Decay 1388 | 15 422 641 310 Lost Part 30 | . . 30 . Squads Dispatched 5 | . 1 3 1 Investigation 1 | . . 1 . Extermination . | . . . . Reinforcement 4 | . 1 2 1 Assault . | . . . . Garrison . | . . . . Intercept . | . . . . Searches Triggered . | . . . . Construction Impeded . | . . . . Haulers Reinforced . | . . . . Active Scanning Responses . | . . . . Cargo Convoy Interrupts . | . . . . Stealth | -11 -10 -9 -9 --------- Run | Yrd Mat Mat Sto Distress Signals 8 | . 2 5 1 Communications Jammed . | . . . . Distress Signals . | . . . . Times Spotted 92 | . 23 54 15 Peak Tracking Total 6 | . 6 5 5 Tactical Retreats 3 | . 1 2 . Traps | -11 -10 -9 -9 ------- Run | Yrd Mat Mat Sto Traps Triggered 6 | . 3 3 . Indirectly . | . . . . Trap Hack Attempts . | . . . . Triggered . | . . . . Disarmed . | . . . . Reprogrammed . | . . . . Reused . | . . . . Traps Extracted . | . . . . Installed . | . . . . Triggered . | . . . . Machines | -11 -10 -9 -9 ---------- Run | Yrd Mat Mat Sto Machines Disabled 5 | . 1 4 . Max in Single Turn 2 | . 1 2 . Machines Repaired . | . . . . Machines Dismantled . | . . . . Machines Sabotaged . | . . . . Overloaded Fab Kills . | . . . . Hacking | -11 -10 -9 -9 --------- Run | Yrd Mat Mat Sto Machines Accessed 23 | . 8 11 4 Terminals 20 | . 7 9 4 Fabricators . | . . . . Repair Stations . | . . . . Recycling Units 2 | . 1 1 . Scanalyzers 1 | . . 1 . Garrison Access . | . . . . Total Hacks 64 | . 26 29 9 Successful 35 | . 15 17 3 Failed 29 | . 11 12 6 Catastrophic 3 | . 1 2 . Database Lockouts . | . . . . Manual 38 | . 12 20 6 Terminals 55 | . 22 24 9 Fabricators . | . . . . Repair Stations . | . . . . Recycling Units 6 | . 4 2 . Scanalyzers 3 | . . 3 . Garrison Access . | . . . . Terminal Hacks 21 | . 8 10 3 Part Schematic 1 | . . 1 . Robot Analysis 6 | . 3 3 . Prototype ID Bank 4 | . 1 3 . Open Door 1 | . . . 1 Emergency Access Points 1 | . 1 . . Terminal Index 1 | . . . 1 Maintenance Status 1 | . 1 . . Transport Status 1 | . . 1 . Recall Investigation 1 | . . 1 . Hauler Manifests 3 | . 1 1 1 Registered Components 1 | . 1 . . Fabricator Hacks . | . . . . Repair Station Hacks . | . . . . Recycling Unit Hacks 3 | . 3 . . Process 1 | . 1 . . Report Inventory 1 | . 1 . . Retrieve Matter 1 | . 1 . . Scanalyzer 2 | . . 2 . Insert Component 1 | . . 1 . Analyze 1 | . . 1 . Garrison Access Hacks . | . . . . Unauthorized Hacks 9 | . 4 5 . Terminals 8 | . 4 4 . Track 3 | . 2 1 . Assimilate 1 | . . 1 . Botnet 2 | . 1 1 . Operators 2 | . 1 1 . Fabricators . | . . . . Repair Stations . | . . . . Recycling Units 1 | . . 1 . Monitor 1 | . . 1 . Scanalyzers . | . . . . Garrison Access . | . . . . Data Cores Recovered . | . . . . Used . | . . . . Hacking Detections 19 | . 6 10 3 Full Trace Events 1 | . . 1 . Feedback Events . | . . . . Feedback Blocked . | . . . . Robot Schematics Acquired . | . . . . Robots Built . | . . . . Authchips . | . . . . Time . | . . . . Total Robot Build Rating . | . . . . Part Schematics Acquired 2 | . . 2 . Parts Built . | . . . . Authchips . | . . . . Time . | . . . . Total Part Build Rating . | . . . . Parts Repaired . | . . . . Time . | . . . . Parts Recycled . | . . . . Recycled Matter 260 | . 260 . . Retrieved Matter 508 | . 508 . . Retrieved Components . | . . . . Parts Scanalyzed 1 | . . 1 . Part Schematics Acquired 1 | . . 1 . Parts Damaged . | . . . . Bothacking | -11 -10 -9 -9 ------------ Run | Yrd Mat Mat Sto Used RIF Installer . | . . . . Robots Hacked . | . . . . Non-combat . | . . . . Combat . | . . . . Robot Hacks Applied . | . . . . Relay Couplers Released . | . . . . Fabnet Peak Effective % . | . . . . Robots Rewired . | . . . . Allies Hacked . | . . . . Hacks Repelled . | . . . . Allies | -11 -10 -9 -9 -------- Run | Yrd Mat Mat Sto Total Allies . | . . . . Largest Group . | . . . . Highest-Rated Group . | . . . . Highest-Rated Ally . | . . . . Total Orders . | . . . . Ally Attacks . | . . . . Total Damage . | . . . . Kills . | . . . . Allies Corrupted . | . . . . Allies Melted . | . . . . Intel | -11 -10 -9 -9 ------- Run | Yrd Mat Mat Sto Active Infowar (turns) 3125 | 13 1134 1978 . Sensors 2533 | . 555 1978 . Seismic 592 | 13 579 . . Robot Analysis Total 6 | . 3 3 . Derelict Logs Recovered . | . . . . Drone Launches . | . . . . Drone Recoveries . | . . . . Exploration | -11 -10 -9 -9 ------------- Run | Yrd Mat Mat Sto Turns Passed 4433 | 101 1134 2510 688 Spaces Moved 1850 | 53 567 947 283 Core 8 | 4 4 . . Treads 1842 | 49 563 947 283 Legs . | . . . . Wheels . | . . . . Hover . | . . . . Flight . | . . . . Fastest Speed 50 | 50 160 160 160 Average Speed 180 | 151 160 199 160 Slowest Speed 250 | 160 250 240 160 Overloaded Moves . | . . . . Propulsion Burnouts . | . . . . Robots Hopped . | . . . . Potential Cave-ins . | . . . . Cave-ins Triggered . | . . . . Exploration Rate (%) 59 | 4 94 92 46 Regions Visited 3 Branch Regions 1 Pre-discovered Areas . | . . . . Known Exits Taken 1 | . . 1 . Unknown Exits Taken 2 | 1 1 . . Scrap Searched . | . . . . Spaces Dug 5 | . 4 1 . Terrain Destroyed 72 | 2 13 57 . Melee . | . . . . Projectile 5 | . 4 1 . AOE 67 | 2 9 56 . Terrain Rammed . | . . . . Walls Destroyed . | . . . . Machines Disabled . | . . . . Actions | -11 -10 -9 -9 --------- Run | Yrd Mat Mat Sto Total 2494 | 64 675 1328 427 Wait 279 | . 23 181 75 Move 1848 | 53 566 946 283 Hop . | . . . . Pick Up 33 | 1 7 23 2 Fast Attach 15 | 7 6 2 . Attach 7 | . 1 5 1 Detach 1 | . 1 . . Swap 41 | . 7 28 6 Drop 33 | . 3 22 8 Fire 235 | 3 59 121 52 Melee . | . . . . Ram . | . . . . Kick . | . . . . Crush 2 | . 2 . . Escape Stasis . | . . . . Rewire . | . . . . Trap . | . . . . Miscellaneous . | . . . . Route ------- -11/Scrapyard -10/Materials (discovered 4 exits: *Mat x2 / [*Min] / [*Sub]) -9/Materials (discovered 6 exits: [*Mat x3] / *Min x2 / *Sto) -9/Storage History --------- Turn | Location | Event 23 | -11/Scrapyard | Discovered new exit (range 16) 102 | -11/Scrapyard | Entered Materials 300 | -10/Materials | Build established: Mutant 469 | -10/Materials | Discovered new exit (range 13) 686 | -10/Materials | Discovered new exit (range 16) 742 | -10/Materials | Discovered new exit (range 8) 1105 | -10/Materials | Discovered new exit (range 9) 1236 | -10/Materials | Entered another Materials area 1236 | -9/Materials | Evolved 2 slots: Propulsion x1, Utility x1 2023 | -9/Materials | Build established: Scavenger-Mutant 2284 | -9/Materials | Discovered new exit (range 16) 2389 | -9/Materials | Identified exit to Mines 2524 | -9/Materials | Discovered exit to Mines (range 16) 2778 | -9/Materials | Discovered new exit (range 6) 3290 | -9/Materials | Core integrity fell below 50% 3336 | -9/Materials | Discovered new exit (range 3) 3342 | -9/Materials | Build established: Mutant 3573 | -9/Materials | Discovered new exit (range 14) 3659 | -9/Materials | Build established: Scavenger-Mutant 3722 | -9/Materials | Discovered new exit (range 8) 3744 | -9/Materials | Identified exit to Storage 3746 | -9/Materials | Entered Storage 4430 | -9/Storage | Core integrity fell below 20% 4434 | -9/Storage | Destroyed by L-31 Rogue with Katana Last Messages --------------- 04285_ Destroyed Heat Sink. 04288_ G-34 Mercenary destroyed. 04290_ R-06 Scavenger collects Aluminum Leg. 04291_ Acquired 32 matter. 04293_ System corrupted: Energy discharge (-60). 04294_ R-06 Scavenger collects Sml. Laser. 04333_ Connecting with Terminal... >>Index(Terminals) Found 8 terminals. Downloaded coordinate data. 04333_ Connecting with Terminal... 04375_ Critical hit (Burn: +37). 04398_ System corrupted: Energy discharge (-71). 04400_ Y-45 Defender destroyed. 04416_ R-06 Scavenger collects Heat Sink. 04416_ A-02 Transporter destroyed. 04422_ G-34 Mercenary destroyed. 04425_ R-06 Scavenger collects Lgt. Treads. 04428_ R-06 Scavenger collects Heat Sink. 04429_ Autogun severed. Map ----- +----------------------------------------------------+ | ???????????????????????????????????????????## ##? | | ??????????????????????????????#######???????# ### | | ?????????????????? ########## #???????# | | ?????????????????? #???????# | | ?????????????????? T #???????# | | ?????????????????? #???????# | | ?????????????????????????###### #???????# | | ??????????????????????????????###+######????##### | | ??????????????????????????????# #????##### | | ??????????????????????????????# """" ######"T"# | | ??????????????????????????????# "??" # | | ??????????????????????????????# "??" + % | | ??????????????????????????????# "??" # | | ??????????????????????????????# "??" # | | ??????????????????????????????# """" # | | ??????????????????????????????# # | | ??????????????????????????????# # ] | | ??????????????????????????????##+####+## ] | | ???????????????????????????????# #??# ## ####### | | ???????????????????????????????# #??# ## #?????# | | ???????????????????????????????# #??# ## #?????# | | ???????????????## ############## #### ## #?????" | | ????????????# #?????? | | ????????????+ ^ % #?????? | | ?????????????????####+####+#########+####/#######? | | ???????????????# [[*%[l@ [#??????# / #? | | ????????????+ + """""[m #??????# ! #? | | ?????????????????? """""! #??????# *! #? | | ???????????????????""""" #??????# * #? | | ??????????????????? ??????# = #? | | ????????????????????##########?????##############? | | | | | | | | | | | | | | | | | | | | | | | | | | | | | | | | | | | | | | | +----------------------------------------------------+ Best States ------------- Heat Dissipation 28 Energy Generation 12 Energy Capacity 265 Matter Stores 300 Matter Capacity 300 Sight Range 16 Robot Scan Range 14 Terrain Scan Density 10 Armor Coverage 150 Evasion (%) 40 Recoil Reduction 3 Item Schematics ----------------- Lgt. Armor Plating | -9/Materials | Hacked Hacking Suite | -9/Materials | Scanalyzed Robot Schematics ------------------ None Fabricated ------------ Nothing Repaired ---------- Nothing Alien Tech Used ----------------- None Achievements -------------- None Challenges ------------ None Game ------ Seed FluxArchitectSheargun Manual? 0 Play Time 00:42:51 Cumulative 17.1 hours Start 2025.06.17 @ 15:50:13 End 2025.06.17 @ 16:32:02 Sessions 1 Manual Loads 0 Difficulty Rogue Special Mode None Game No. 21 Rogue 21 Adventurer 0 Explorer 0 Win Type - Total 2 Types 2/0/0/0/0/0/0/0/0/0 Lore% 14 Gallery% 18 Achievement% 26 Wizard Run 0 Options --------- Layout 0 ASCII 0 Keyboard 1 Movement Vi Keybinds 0 Fullscreen 1 Font 18/SmallcapsGlow Map View 76x50 Zoom Use 0% Tactical HUD 1 Map Filters NONE Filters NONE Steam 1 RUN: 315ea43b-eddd-4b66-ad6a-f4cb99e34497